bitfinex/quotes_BTCUSD_20250803
["timestamp","ask_amount","ask_price","bid_price","bid_amount"]
[1754217546702,5.18165853,114080.0,114070.0,0.13548]
[1754217547572,5.20795269,114080.0,114070.0,0.13548]
[1754217549292,5.20795269,114080.0,114070.0,0.18247]
[1754217551298,5.11911513,114080.0,114070.0,0.18247]
[1754217554073,5.10139513,114080.0,114070.0,0.18247]
[1754217554487,5.09274513,114080.0,114070.0,0.18247]
[1754217555538,5.09274513,114080.0,114070.0,0.18543]
[1754217555971,5.10097482,114080.0,114070.0,0.18543]
[1754217556796,5.44097482,114080.0,114070.0,0.18543]
[1754217557825,5.44099004,114080.0,114070.0,0.18543]
[1754217560065,5.07469588,114080.0,114070.0,0.18747]
[1754217560407,5.41469588,114080.0,114070.0,0.18747]
[1754217563061,5.16862088,114080.0,114070.0,0.18747]
[1754217563318,5.16606088,114080.0,114070.0,0.18747]
[1754217565879,5.16606088,114080.0,114070.0,0.18543]
[1754217566109,5.16606088,114080.0,114070.0,0.18247]
[1754217566325,5.25489844,114080.0,114070.0,0.18247]
[1754217567462,5.25489844,114080.0,114070.0,0.18543]
[1754217568789,5.26862577,114080.0,114070.0,0.18543]
[1754217569009,4.90648989,114080.0,114070.0,0.18543]
[1754217569474,4.81765233,114080.0,114070.0,0.18543]
[1754217572587,4.81765233,114080.0,114070.0,0.18443]
[1754217573035,5.15765233,114080.0,114070.0,0.18443]
[1754217575666,4.81765233,114080.0,114070.0,0.18652]
[1754217575902,5.15765233,114080.0,114070.0,0.18652]
[1754217577323,5.15765233,114080.0,114070.0,0.18443]
[1754217578970,5.19914124,114080.0,114070.0,0.18443]
[1754217580877,5.15765233,114080.0,114070.0,0.18443]
[1754217581095,5.18233843,114080.0,114070.0,0.18443]
[1754217585893,5.1686111,114080.0,114070.0,0.18443]
[1754217588198,5.16861446,114080.0,114070.0,0.18443]
[1754217589775,5.16862687,114080.0,114070.0,0.18443]
[1754217590193,5.18235413,114080.0,114070.0,0.18443]
[1754217592302,5.18235413,114080.0,114070.0,0.18652]
[1754217596308,5.22588131,114080.0,114070.0,0.18652]
[1754217597800,5.21215405,114080.0,114070.0,0.18652]
[1754217598442,5.21215524,114080.0,114070.0,0.18652]
[1754217600962,5.22588251,114080.0,114070.0,0.18652]
[1754217602986,5.18235533,114080.0,114070.0,0.13448]
[1754217603598,5.18235533,114080.0,114070.0,0.05046]
[1754217603817,5.18235533,114080.0,114070.0,0.1843]
[1754217604686,5.18235533,114080.0,114070.0,0.18741]
[1754217605117,5.16862806,114080.0,114070.0,0.18741]
[1754217608091,5.18235536,114080.0,114070.0,0.18741]
[1754217608755,5.18235536,114080.0,114070.0,0.05357]
[1754217608976,5.18235536,114080.0,114070.0,0.18737]
[1754217610744,5.24024685,114080.0,114070.0,0.18737]
[1754217611778,5.2402539,114080.0,114070.0,0.18737]
[1754217617061,5.2265266,114080.0,114070.0,0.18737]
[1754217617291,5.16863511,114080.0,114070.0,0.18737]
[1754217619917,5.18236232,114080.0,114070.0,0.18737]
[1754217623884,5.18236159,114080.0,114070.0,0.18737]
[1754217625144,5.16863438,114080.0,114070.0,0.18737]
[1754217628263,4.9833736,114080.0,114070.0,0.18737]
[1754217629332,4.9808136,114080.0,114070.0,0.18737]
[1754217633451,4.6433736,114080.0,114070.0,0.18737]
[1754217633859,4.6433736,114080.0,114070.0,0.05046]
[1754217634061,4.7359888,114080.0,114070.0,0.1344]
[1754217634309,4.7384988,114080.0,114070.0,0.1344]
[1754217634654,4.7359888,114080.0,114070.0,0.1344]
[1754217634865,4.67016387,114080.0,114070.0,0.1344]
[1754217635283,4.65643665,114080.0,114070.0,0.18204]
[1754217637783,4.65643665,114080.0,114070.0,0.1344]
[1754217638329,4.67016408,114080.0,114070.0,0.1344]
[1754217640003,4.67016408,114080.0,114070.0,0.18204]
[1754217640569,4.75900164,114080.0,114070.0,0.18204]
[1754217641010,4.75900164,114080.0,114070.0,0.1344]
[1754217641481,4.75900164,114080.0,114070.0,0.18204]
[1754217641918,4.75900164,114080.0,114070.0,0.1344]
[1754217642276,4.75900164,114080.0,114070.0,0.18204]
[1754217642489,4.78681459,114080.0,114070.0,0.13436]
[1754217642726,4.78932459,114080.0,114070.0,0.13436]
[1754217643108,4.81569659,114080.0,114070.0,0.13436]
[1754217643331,4.78788364,114080.0,114070.0,0.13436]
[1754217643533,4.76317426,114080.0,114070.0,0.13436]
[1754217643780,4.78787048,114080.0,114070.0,0.13436]
[1754217644597,4.77163305,114080.0,114070.0,0.001]
[1754217644803,4.90499305,114080.0,114070.0,0.001]
[1754217646608,4.65340105,114080.0,114070.0,0.001]
[1754217647415,4.66712919,114080.0,114070.0,0.001]
[1754217648607,4.36707314,114080.0,114070.0,0.04864]
[1754217648826,4.44811014,114080.0,114070.0,0.04864]
[1754217655545,4.434382,114080.0,114070.0,0.04864]
[1754217658378,4.44810991,114080.0,114070.0,0.04864]
[1754217660625,4.44810991,114080.0,114070.0,0.05174]
[1754217660830,4.47279736,114080.0,114070.0,0.05174]
[1754217661039,4.56163492,114080.0,114070.0,0.05174]
[1754217662539,4.47279736,114080.0,114070.0,0.05388]
[1754217662746,4.33947736,114080.0,114070.0,0.05388]
[1754217663563,4.33947736,114080.0,114070.0,0.12459198]
[1754217664445,4.14239245,114080.0,114070.0,0.12459198]
[1754217665316,4.14239245,114080.0,114070.0,0.05388]
[1754217667415,3.959784,114080.0,114070.0,0.05388]
[1754217667619,3.959784,114080.0,114070.0,0.05174]
[1754217667834,3.99806935,114080.0,114070.0,0.001]
[1754217668465,3.99806935,114080.0,114070.0,0.05304]
[1754217668872,3.99806935,114080.0,114070.0,0.05614]
[1754217669882,4.13126935,114080.0,114070.0,0.05614]
[1754217671170,4.10671161,114080.0,114070.0,0.05614]
[1754217671928,4.19554917,114080.0,114070.0,0.05614]
[1754217674463,4.18182156,114080.0,114070.0,0.05614]
[1754217677517,4.1955492,114080.0,114070.0,0.05614]
[1754217677878,4.10671164,114080.0,114070.0,0.05614]
[1754217679351,4.13141374,114080.0,114070.0,0.05614]
[1754217682909,3.99821374,114080.0,114070.0,0.05614]
[1754217683322,3.99821374,114080.0,114070.0,0.05828]
[1754217685522,3.9844861,114080.0,114070.0,0.05828]
[1754217685872,4.07332366,114080.0,114070.0,0.05828]
[1754217688144,4.08705126,114080.0,114070.0,0.05828]
[1754217688514,3.87541266,114080.0,114070.0,0.05828]
[1754217688714,3.7865751,114080.0,114070.0,0.05828]
[1754217691918,3.80030271,114080.0,114070.0,0.05828]
[1754217697343,3.79778806,114080.0,114070.0,0.05828]
[1754217697571,3.79207403,114080.0,114070.0,0.05828]
[1754217699356,3.77834642,114080.0,114070.0,0.05828]
[1754217700527,3.77834706,114080.0,114070.0,0.05828]
[1754217702237,3.7920747,114080.0,114070.0,0.05828]
[1754217703656,4.1320747,114080.0,114070.0,0.05828]
[1754217704453,4.11834706,114080.0,114070.0,0.05828]
[1754217707477,4.1320746,114080.0,114070.0,0.05828]
[1754217709073,4.13207538,114080.0,114070.0,0.05828]
[1754217709278,4.14031281,114080.0,114070.0,0.05828]
[1754217709465,4.22915037,114080.0,114070.0,0.05828]
[1754217710089,4.14031281,114080.0,114070.0,0.05828]
[1754217711753,3.89622681,114080.0,114070.0,0.05828]
[1754217715200,3.88249927,114080.0,114070.0,0.05828]
[1754217719254,3.89622683,114080.0,114070.0,0.05828]
[1754217722765,3.89622392,114080.0,114070.0,0.05828]
[1754217723198,3.98506148,114080.0,114070.0,0.05828]
[1754217725018,3.97133392,114080.0,114070.0,0.05828]
[1754217728121,3.98506144,114080.0,114070.0,0.05828]
[1754217729701,3.89622388,114080.0,114070.0,0.05828]
[1754217735094,3.88249636,114080.0,114070.0,0.05828]
[1754217737125,3.88249572,114080.0,114070.0,0.05828]
[1754217738206,3.89622327,114080.0,114070.0,0.05828]
[1754217741270,3.89622308,114080.0,114070.0,0.05828]
[1754217743069,3.98506064,114080.0,114070.0,0.05828]
[1754217745396,3.97133309,114080.0,114070.0,0.05828]
[1754217748345,3.98506083,114080.0,114070.0,0.05828]
[1754217748676,3.985061,114080.0,114070.0,0.05828]
[1754217749934,3.89622344,114080.0,114070.0,0.05828]
[1754217754338,3.8824957,114080.0,114070.0,0.05828]
[1754217757076,3.8824957,114080.0,114070.0,0.05614]
[1754217757272,3.89622344,114080.0,114070.0,0.05614]
[1754217757608,3.89622427,114080.0,114070.0,0.05614]
[1754217758170,3.98506183,114080.0,114070.0,0.05614]
[1754217763135,3.98506183,114080.0,114070.0,0.05304]
[1754217763348,3.98454183,114080.0,114070.0,0.05304]
[1754217764162,3.98454183,114080.0,114070.0,0.056]
[1754217764469,3.97081409,114080.0,114070.0,0.056]
[1754217765076,3.88197653,114080.0,114070.0,0.056]
[1754217765681,3.66886377,114080.0,114070.0,0.056]
[1754217765896,3.54249653,114080.0,114070.0,0.056]
[1754217766459,3.54249653,114080.0,114070.0,0.05304]
[1754217767722,3.55622412,114080.0,114070.0,0.05304]
[1754217768288,3.55622412,114080.0,114070.0,0.04804]
[1754217770116,3.55622412,114080.0,114070.0,0.051]
[1754217770489,3.55622614,114080.0,114070.0,0.051]
[1754217770687,3.517787,114070.0,114060.0,0.21665709]
[1754217770895,3.54249855,114070.0,114060.0,0.21876709]
[1754217771905,3.54249855,114070.0,114060.0,0.22176709]
[1754217775495,3.54249855,114070.0,114060.0,0.16585709]
[1754217775699,3.54249855,114070.0,114060.0,0.16581709]
[1754217775942,3.54249855,114070.0,114060.0,0.21961709]
[1754217776161,3.60928932,114070.0,114060.0,0.21961709]
[1754217777761,3.62301715,114070.0,114060.0,0.22172709]
[1754217778919,8.62301715,114070.0,114060.0,0.22172709]
[1754217779865,3.62301715,114070.0,114060.0,0.22172709]
[1754217780066,8.62301715,114070.0,114060.0,0.22172709]
[1754217780770,3.62301715,114070.0,114060.0,0.22172709]
[1754217782096,3.55622638,114070.0,114060.0,0.22172709]
[1754217784010,3.54249842,114070.0,114060.0,0.22172709]
[1754217787297,3.55622631,114070.0,114060.0,0.22172709]
[1754217788133,3.5562244,114070.0,114060.0,0.22172709]
[1754217789956,3.3206784,114070.0,114060.0,0.22172709]
[1754217790787,3.32067835,114070.0,114060.0,0.22172709]
[1754217796155,3.09264396,114070.0,114060.0,0.22172709]
[1754217799430,3.10637186,114070.0,114060.0,0.22172709]
[1754217805033,3.09264396,114070.0,114060.0,0.22172709]
[1754217805461,3.09264396,114070.0,114060.0,0.21961709]
[1754217808128,3.10088158,114070.0,114060.0,0.21961709]
[1754217808664,2.89907562,114070.0,114060.0,0.21961709]
[1754217809237,2.91280381,114070.0,114060.0,0.21961709]
[1754217811075,2.90780381,114070.0,114060.0,0.21961709]
[1754217814085,2.89407562,114070.0,114060.0,0.21961709]
[1754217814948,2.89407562,114070.0,114060.0,0.22168709]
[1754217816975,2.90780363,114070.0,114060.0,0.22168709]
[1754217820617,2.92427798,114070.0,114060.0,0.22168709]
[1754217824320,2.92427798,114070.0,114060.0,0.21961709]
[1754217824522,2.92427798,114070.0,114060.0,0.21665709]
[1754217825747,2.91054997,114070.0,114060.0,0.21665709]
[1754217827128,2.91054997,114070.0,114060.0,0.21986709]
[1754217828849,2.92427764,114070.0,114060.0,0.21986709]
[1754217829068,2.92927717,114070.0,114060.0,0.21986709]
[1754217831858,2.67852517,114070.0,114060.0,0.21986709]
[1754217834692,2.67852528,114070.0,114060.0,0.21986709]
[1754217838664,2.66479761,114070.0,114060.0,0.22193709]
[1754217841492,2.67852516,114070.0,114060.0,0.22193709]
[1754217843873,2.76736272,114070.0,114060.0,0.22193709]
[1754217845097,2.67852516,114070.0,114060.0,0.22193709]
[1754217845841,2.66479761,114070.0,114060.0,0.22193709]
[1754217848185,2.66479751,114070.0,114060.0,0.22193709]
[1754217848810,2.67852519,114070.0,114060.0,0.22193709]
[1754217853805,2.67852516,114070.0,114060.0,0.22193709]
[1754217858914,2.66479748,114070.0,114060.0,0.22193709]
[1754217859928,2.66479748,114070.0,114060.0,0.08889709]
[1754217860197,2.66479748,114070.0,114060.0,0.22181709]
[1754217863467,2.67852503,114070.0,114060.0,0.22181709]
[1754217864841,2.46202703,114070.0,114060.0,0.22181709]
[1754217865115,2.44829948,114070.0,114060.0,0.22185709]
[1754217868091,2.44555279,114070.0,114060.0,0.22185709]
[1754217868316,2.46202713,114070.0,114060.0,0.22185709]
[1754217870176,2.55086469,114070.0,114060.0,0.22185709]
[1754217870581,2.46202713,114070.0,114060.0,0.22185709]
[1754217875746,2.46202713,114070.0,114060.0,0.21978709]
[1754217876750,2.44829946,114070.0,114060.0,0.21978709]
[1754217878019,2.44829963,114070.0,114060.0,0.21978709]
[1754217878419,7.44829963,114070.0,114060.0,0.21978709]
[1754217879681,7.53713749,114070.0,114060.0,0.21978709]
[1754217879867,7.53713749,114070.0,114060.0,0.21657709]
[1754217880472,5.11354949,114070.0,114060.0,0.21657709]
[1754217880690,5.02471193,114070.0,114060.0,0.21657709]
[1754217880907,5.02471193,114070.0,114060.0,0.21977709]
[1754217882570,5.02471197,114070.0,114060.0,0.21977709]
[1754217883476,5.02471197,114070.0,114060.0,0.08365709]
[1754217883684,5.02471197,114070.0,114060.0,0.16569709]
[1754217883892,5.11354953,114070.0,114060.0,0.16569709]
[1754217884259,5.12727737,114070.0,114060.0,0.16569709]
[1754217885082,5.11354953,114070.0,114060.0,0.16569709]
[1754217885522,5.11354884,114070.0,114060.0,0.16569709]
[1754217885950,5.11354884,114070.0,114060.0,0.21963709]
[1754217886591,5.02471128,114070.0,114060.0,0.03281709]
[1754217886772,5.04085128,114070.0,114060.0,0.16569709]
[1754217886989,5.06722328,114070.0,114060.0,0.16569709]
[1754217887199,4.92212584,114070.0,114060.0,0.16569709]
[1754217888371,4.908398,114070.0,114060.0,0.16569709]
[1754217889083,4.99723556,114070.0,114060.0,0.16569709]
[1754217889480,4.908398,114070.0,114060.0,0.16569709]
[1754217890092,4.892258,114070.0,114060.0,0.16569709]
[1754217890957,0.026372,114070.0,114060.0,0.16569709]
[1754217891178,4.892258,114070.0,114060.0,0.16569709]
[1754217892003,4.892258,114070.0,114060.0,0.21963709]
[1754217892742,5.24598617,114070.0,114060.0,0.21963709]
[1754217895146,0.38010017,114070.0,114060.0,0.21963709]
[1754217895292,5.24598617,114070.0,114060.0,0.21963709]
[1754217895486,5.232258,114070.0,114060.0,0.21963709]
[1754217896390,5.232258,114070.0,114060.0,0.22283709]
[1754217896943,4.865886,114070.0,114060.0,0.22283709]
[1754217897167,0.20003074,114080.0,114060.0,0.22283709]
[1754217897511,4.865886,114070.0,114060.0,0.22283709]
[1754217898061,4.865886,114070.0,114060.0,0.22183709]
[1754217898676,4.87961414,114070.0,114060.0,0.22183709]
[1754217898885,5.21961414,114070.0,114060.0,0.22183709]
[1754217899082,5.2443097,114070.0,114060.0,0.22183709]
[1754217899285,5.2443097,114070.0,114060.0,0.22283709]
[1754217901462,0.3784237,114070.0,114060.0,0.22283709]
[1754217901793,5.2443097,114070.0,114060.0,0.22283709]
[1754217902312,4.89058156,114070.0,114060.0,0.22283709]
[1754217902492,0.02469556,114070.0,114060.0,0.22283709]
[1754217902705,4.90430964,114070.0,114060.0,0.22283709]
[1754217903231,4.71181108,114070.0,114060.0,0.21963709]
[1754217903974,4.71181108,114070.0,114060.0,0.21863709]
[1754217904373,5.05181108,114070.0,114060.0,0.22063709]
[1754217904570,5.05181108,114070.0,114060.0,0.21863709]
[1754217909325,4.698083,114070.0,114060.0,0.21863709]
[1754217909969,0.20003074,114080.0,114060.0,0.21863709]
[1754217910106,4.698083,114070.0,114060.0,0.21863709]
[1754217910783,4.698083,114070.0,114060.0,0.21967709]
[1754217910992,0.20003074,114080.0,114060.0,0.21967709]
[1754217911195,4.698083,114070.0,114060.0,0.21967709]
[1754217911400,5.038083,114070.0,114060.0,0.21967709]
[1754217912334,5.038083,114070.0,114060.0,0.22067709]
[1754217912535,5.12692056,114070.0,114060.0,0.22067709]
[1754217912733,5.14064872,114070.0,114060.0,0.22067709]
[1754217913247,5.16702172,114070.0,114060.0,0.22067709]
[1754217914127,5.16702172,114070.0,114060.0,0.21967709]
[1754217914306,5.16702172,114070.0,114060.0,0.22167709]
[1754217914622,5.07818416,114070.0,114060.0,0.22167709]
[1754217915056,5.10289114,114070.0,114060.0,0.22167709]
[1754217917930,5.08916298,114070.0,114060.0,0.22167709]
[1754217919319,0.39107998,114070.0,114060.0,0.22167709]
[1754217919524,5.08916298,114070.0,114060.0,0.22167709]
[1754217920308,0.39107998,114070.0,114060.0,0.22167709]
[1754217920480,5.08916298,114070.0,114060.0,0.22167709]
[1754217921409,0.39107998,114070.0,114060.0,0.22167709]
[1754217921568,5.08916298,114070.0,114060.0,0.22167709]
[1754217921965,5.17800054,114070.0,114060.0,0.22167709]
[1754217922252,5.21628669,114070.0,114060.0,0.21859709]
[1754217922474,0.51820369,114070.0,114060.0,0.21859709]
[1754217922652,5.21628669,114070.0,114060.0,0.16465709]
[1754217923643,5.21628669,114070.0,114060.0,0.21719709]
[1754217924249,5.21628669,114070.0,114060.0,0.16465709]
[1754217925219,5.21628669,114070.0,114060.0,0.22023709]
[1754217925418,0.49364595,114070.0,114060.0,0.22023709]
[1754217925625,5.10289139,114070.0,114060.0,0.22023709]
[1754217929838,0.40480839,114070.0,114060.0,0.22023709]
[1754217930044,5.10289139,114070.0,114060.0,0.22023709]
[1754217935232,0.40480839,114070.0,114060.0,0.22023709]
[1754217935434,5.10289139,114070.0,114060.0,0.22023709]
[1754217935628,5.19172895,114070.0,114060.0,0.22023709]
[1754217938125,5.19172406,114070.0,114060.0,0.22023709]
[1754217939156,5.1917241,114070.0,114060.0,0.22023709]
[1754217940187,5.17799569,114070.0,114060.0,0.22023709]
[1754217940613,0.47991269,114070.0,114060.0,0.22023709]
[1754217940818,5.17799569,114070.0,114060.0,0.22023709]
[1754217941655,5.08915813,114070.0,114060.0,0.22023709]
[1754217941857,5.08915813,114070.0,114060.0,0.22227709]
[1754217942891,5.10288643,114070.0,114060.0,0.22227709]
[1754217943306,5.10288643,114070.0,114060.0,0.22023709]
[1754217943733,0.40480343,114070.0,114060.0,0.22023709]
[1754217943970,5.07651343,114070.0,114060.0,0.22227709]
[1754217944822,0.37843043,114070.0,114060.0,0.22227709]
[1754217945096,5.07651343,114070.0,114060.0,0.22227709]
[1754217947849,5.07651621,114070.0,114060.0,0.22227709]
[1754217949925,0.37843321,114070.0,114060.0,0.22227709]
[1754217950125,5.07651621,114070.0,114060.0,0.22227709]
[1754217951932,0.37843321,114070.0,114060.0,0.22227709]
[1754217952127,5.07651621,114070.0,114060.0,0.22227709]
[1754217952753,5.06278791,114070.0,114060.0,0.22227709]
[1754217954128,0.36470491,114070.0,114060.0,0.22227709]
[1754217954338,5.06278791,114070.0,114060.0,0.22227709]
[1754217955657,5.07651602,114070.0,114060.0,0.22227709]
[1754217956073,0.37843302,114070.0,114060.0,0.22227709]
[1754217956278,5.07651602,114070.0,114060.0,0.22227709]
[1754217956733,5.06278791,114070.0,114060.0,0.22227709]
[1754217958461,0.02470491,114070.0,114060.0,0.24450956]
[1754217958678,0.00823407,114070.0,114060.0,0.26950956]
[1754217958892,4.698083,114090.0,114060.0,0.29587656]
[1754217959154,4.698083,114090.0,114080.0,0.07071198]
[1754217959155,4.70631652,114090.0,114080.0,0.07071198]
[1754217959366,4.70631652,114090.0,114080.0,0.26202198]
[1754217960003,4.70631652,114090.0,114080.0,0.28702198]
[1754217960439,4.70631652,114090.0,114080.0,0.28902198]
[1754217961075,4.72004152,114090.0,114080.0,0.28902198]
[1754217961283,4.72002991,114090.0,114080.0,0.28902198]
[1754217961708,4.711808,114090.0,114080.0,0.28902198]
[1754217962639,4.711808,114090.0,114080.0,0.29202198]
[1754217962798,4.711808,114090.0,114080.0,0.29002198]
[1754217963201,4.711808,114090.0,114080.0,0.29302198]
[1754217963370,4.510997,114090.0,114080.0,0.29302198]
[1754217964491,0.013725,114090.0,114080.0,0.32496058]
[1754217964905,0.013725,114090.0,114080.0,0.35132258]
[1754217965111,4.497272,114090.0,114080.0,0.35132258]
[1754217966142,4.497272,114090.0,114080.0,0.45740444]
[1754217967011,4.497272,114090.0,114080.0,0.45440444]
[1754217967436,4.497272,114090.0,114080.0,0.45140444]
[1754217968028,0.01746941,114100.0,114080.0,0.45144444]
[1754217968238,4.51099564,114110.0,114080.0,0.45144444]
[1754217968445,4.497272,114100.0,114090.0,0.05659]
[1754217968624,4.497272,114100.0,114090.0,0.05531]
[1754217969454,4.497272,114100.0,114090.0,0.10113424]
[1754217969575,4.4973555,114100.0,114090.0,0.12749224]
[1754217969783,8.35e-05,114100.0,114090.0,0.12749224]
[1754217970224,8.35e-05,114100.0,114090.0,0.12949224]
[1754217970423,8.35e-05,114100.0,114090.0,0.13168349]
[1754217971257,0.01731087,114100.0,114090.0,0.13168349]
[1754217971464,0.35555316,114130.0,114090.0,0.13168349]
[1754217971669,4.352826,114120.0,114100.0,0.13272]
[1754217971923,4.352826,114110.0,114100.0,0.13272]
[1754217972126,4.352826,114110.0,114100.0,0.13468]
[1754217972535,4.352826,114110.0,114100.0,0.19127]
[1754217973772,4.353126,114110.0,114100.0,0.21827]
[1754217974191,4.36130975,114110.0,114100.0,0.22027]
[1754217974620,4.36100975,114110.0,114100.0,0.22027]
[1754217974832,4.37855029,114110.0,114100.0,0.22027]
[1754217975056,4.37885029,114110.0,114100.0,0.22027]
[1754217975935,4.37885029,114110.0,114100.0,0.21831]
[1754217976935,4.37885029,114110.0,114100.0,0.22027]
[1754217977163,4.37885029,114110.0,114100.0,0.22031]
[1754217980771,4.37885029,114110.0,114100.0,0.08759]
[1754217980978,4.37885029,114110.0,114100.0,0.21507]
[1754217981366,4.37885029,114110.0,114100.0,0.21831]
[1754217981979,4.37885029,114110.0,114100.0,0.22027]
[1754217983329,4.37855029,114110.0,114100.0,0.22027]
[1754217983985,4.37855929,114110.0,114100.0,0.22027]
[1754217987294,4.39497977,114110.0,114100.0,0.22027]
[1754217989860,4.39500307,114110.0,114100.0,0.21827]
[1754217990071,4.39500307,114110.0,114100.0,0.21627]
[1754217990283,4.39500307,114110.0,114100.0,0.21827]
[1754217990493,4.39500307,114110.0,114100.0,0.22127]
[1754217990951,4.13872907,114110.0,114100.0,0.21927]
[1754217991474,4.13872907,114110.0,114100.0,0.22227]
[1754217998429,4.13877075,114110.0,114100.0,0.22227]
[1754217999672,4.13907075,114110.0,114100.0,0.22227]
[1754218000740,4.13907075,114110.0,114100.0,0.21927]
[1754218000974,4.13907075,114110.0,114100.0,0.21627]
[1754218001250,4.13907075,114110.0,114100.0,0.21827]
[1754218001476,4.13907075,114110.0,114100.0,0.22227]
[1754218001943,4.13907075,114110.0,114100.0,0.22027]
[1754218003437,4.13907075,114110.0,114100.0,0.22127]
[1754218004172,4.13909476,114110.0,114100.0,0.22127]
[1754218007266,4.13909317,114110.0,114100.0,0.22127]
[1754218007703,4.13909265,114110.0,114100.0,0.22127]
[1754218008126,4.1390916,114110.0,114100.0,0.22127]
[1754218009838,4.1390916,114110.0,114100.0,0.21727]
[1754218010341,4.12262493,114110.0,114100.0,0.22027]
[1754218010774,4.12262493,114110.0,114100.0,0.21927]
[1754218011739,4.12262493,114110.0,114100.0,0.22127]
[1754218011936,4.12262493,114110.0,114100.0,0.21927]
[1754218012346,4.12262493,114110.0,114100.0,0.22027]
[1754218013017,4.12262493,114110.0,114100.0,0.21727]
[1754218013438,4.12232493,114110.0,114100.0,0.21727]
[1754218013862,4.12232493,114110.0,114100.0,0.21927]
[1754218016431,4.13604798,114110.0,114100.0,0.21927]
[1754218016852,4.13604798,114110.0,114100.0,0.241197]
[1754218017059,4.13604798,114110.0,114100.0,0.21927]
[1754218019699,4.13104798,114110.0,114100.0,0.21927]
[1754218023303,4.12281559,114110.0,114100.0,0.21927]
[1754218024085,4.12281559,114110.0,114100.0,0.245627]
[1754218024267,4.12281559,114110.0,114100.0,0.21927]
[1754218024407,4.12281559,114110.0,114100.0,0.241197]
[1754218024909,4.13104052,114110.0,114100.0,0.241197]
[1754218026381,4.12281559,114110.0,114100.0,0.241197]
[1754218033189,4.13104024,114110.0,114100.0,0.241197]
[1754218034932,0.02626359,114110.0,114100.0,0.241197]
[1754218036588,0.5,114120.0,114100.0,0.241197]
[1754218036783,3.92150981,114120.0,114110.0,0.05785086]
[1754218037016,3.92150981,114120.0,114110.0,0.082105]
[1754218037861,3.95363183,114120.0,114110.0,0.082105]
[1754218039383,3.95363183,114120.0,114110.0,0.083105]
[1754218039613,3.95363183,114120.0,114110.0,0.085115]
[1754218040221,3.95363183,114120.0,114110.0,0.084115]
[1754218040434,3.95363183,114120.0,114110.0,0.086115]
[1754218040848,3.95363183,114120.0,114110.0,0.13679086]
[1754218041045,3.95363183,114120.0,114110.0,0.00419086]
[1754218041249,3.95363183,114120.0,114110.0,0.13679086]
[1754218041450,3.95363183,114120.0,114110.0,0.19135086]
[1754218041659,3.95363183,114120.0,114110.0,0.21416]
[1754218041858,3.95363183,114120.0,114110.0,0.21927]
[1754218042940,3.95363183,114120.0,114110.0,0.10659935]
[1754218043145,3.95363183,114120.0,114110.0,0.21726]
[1754218047185,0.04034683,114120.0,114110.0,0.32535186]
[1754218047396,0.04034683,114120.0,114110.0,0.35170286]
[1754218048495,0.03212202,114120.0,114110.0,0.35170286]
[1754218048709,0.03212202,114120.0,114110.0,0.396616]
[1754218048914,4.413285,114140.0,114110.0,0.394616]
[1754218049127,0.03106633,114120.0,114110.0,0.338956]
[1754218049330,3.913285,114130.0,114120.0,0.05567]
[1754218049543,0.00822414,114130.0,114120.0,0.05567]
[1754218049753,0.00822414,114130.0,114120.0,0.18527]
[1754218049754,3.92150914,114130.0,114120.0,0.18527]
[1754218049968,3.92150914,114130.0,114120.0,0.21027]
[1754218050192,3.92150914,114130.0,114120.0,0.15764]
[1754218050639,3.92150914,114130.0,114120.0,0.21027]
[1754218050843,3.92150914,114130.0,114120.0,0.21227]
[1754218052148,3.95375431,114130.0,114120.0,0.21227]
[1754218052577,3.95375431,114130.0,114120.0,0.21427]
[1754218055563,3.95375037,114130.0,114120.0,0.21427]
[1754218055759,3.95375037,114130.0,114120.0,0.21227]
[1754218057267,3.95375037,114130.0,114120.0,0.21027]
[1754218058068,3.95375037,114130.0,114120.0,0.21227]
[1754218058526,3.95375037,114130.0,114120.0,0.21027]
[1754218059060,3.95375037,114130.0,114120.0,0.21327]
[1754218059466,3.9674712,114130.0,114120.0,0.21327]
[1754218059920,3.95375037,114130.0,114120.0,0.21327]
[1754218060319,3.95375037,114130.0,114120.0,0.21127]
[1754218060757,3.95375037,114130.0,114120.0,0.21427]
[1754218060967,3.95375037,114130.0,114120.0,0.21731]
[1754218061177,3.95375037,114130.0,114120.0,0.21331]
[1754218061612,3.95375037,114130.0,114120.0,0.16164]
[1754218062236,3.95375037,114130.0,114120.0,0.21427]
[1754218064181,3.95375037,114130.0,114120.0,0.21435]
[1754218064849,3.95375037,114130.0,114120.0,0.236089]
[1754218066524,3.95375037,114130.0,114120.0,0.103369]
[1754218066736,3.95375037,114130.0,114120.0,0.21447]
[1754218067190,3.95375219,114130.0,114120.0,0.21447]
[1754218068032,3.95375219,114130.0,114120.0,0.21751]
[1754218069089,3.78232919,114130.0,114120.0,0.21751]
[1754218069533,3.78233038,114130.0,114120.0,0.21751]
[1754218069767,3.78233038,114130.0,114120.0,0.239261]
[1754218070408,3.78233038,114130.0,114120.0,0.241351]
[1754218071862,3.78233128,114130.0,114120.0,0.241351]
[1754218072892,3.78233128,114130.0,114120.0,0.241391]
[1754218076573,0.04046928,114130.0,114120.0,0.241391]
[1754218089201,0.04047165,114130.0,114120.0,0.241391]
[1754218089881,0.04047165,114130.0,114120.0,0.08167]
[1754218090096,0.04047165,114130.0,114120.0,0.21555]
[1754218090446,0.04047165,114130.0,114120.0,0.08167]
[1754218090651,0.04047165,114130.0,114120.0,0.21571]
[1754218091298,0.04047165,114130.0,114120.0,0.21873]
[1754218092151,0.04047182,114130.0,114120.0,0.21873]
[1754218092818,0.04047182,114130.0,114120.0,0.242753]
[1754218104478,0.04047182,114130.0,114120.0,0.108713]
[1754218104683,0.04047182,114130.0,114120.0,0.22096]
[1754218110944,4.133068,114160.0,114120.0,0.22096]
[1754218111162,3.633068,114150.0,114120.0,0.22096]
[1754218111435,3.64952903,114150.0,114130.0,0.05902]
[1754218111655,3.633068,114140.0,114130.0,0.05902]
[1754218111878,3.633068,114140.0,114130.0,0.19322]
[1754218113082,3.633068,114140.0,114130.0,0.216046]
[1754218113271,3.633068,114140.0,114130.0,0.218086]
[1754218113675,3.633068,114140.0,114130.0,0.19622]
[1754218115304,3.633068,114140.0,114130.0,0.19826]
[1754218120412,3.633068,114140.0,114130.0,0.22326]
[1754218122821,3.64129878,114140.0,114130.0,0.22326]
[1754218131518,3.64129878,114140.0,114130.0,0.2233]
[1754218136167,3.64129878,114140.0,114130.0,0.2213]
[1754218136618,3.64129878,114140.0,114130.0,0.2233]
[1754218136833,3.64129878,114140.0,114130.0,0.2223]
[1754218137158,3.64129878,114140.0,114130.0,0.2203]